lending/lending_fUSD_20251106
["ID","MTS","AMOUNT","RATE_DAILY","PERIOD"]
[393302545,1762439433131,-1000.0,0.00017048,2]
[393302547,1762439433142,-1742.27231287,0.00017054,2]
[393302549,1762439433152,-556.4,0.00017063,2]
[393302551,1762439433164,-355.25282514,0.00017148,2]
[393302553,1762439433174,-1742.27231287,0.0001716,2]
[393302555,1762439433184,-1000.0,0.00017181,2]
[393302557,1762439433195,-166.66,0.00017198,2]
[393302559,1762439433204,-1742.27231287,0.00017265,2]
[393302561,1762439433214,-556.4,0.00017337,2]
[393302562,1762439433224,-433.0,0.00017339,2]
[393302563,1762439433234,-1742.27231287,0.00017371,2]
[393302564,1762439433244,-166.66,0.00017381,2]
[393302565,1762439433254,-477.87911524,0.00017466,2]
[393302566,1762439433264,-1742.27231287,0.00017477,2]
[393302567,1762439433273,-378.0,0.00017494,2]
[393302568,1762439433283,-378.0,0.0001753,2]
[393302569,1762439433293,-166.66,0.00017532,2]
[393302570,1762439433302,-1742.27231287,0.00017583,2]
[393302571,1762439433312,-1500.0,0.00017596,2]
[393302572,1762439433322,-556.4,0.00017611,2]
[393302574,1762439433331,-893.73840764,0.00017634,2]
[393302575,1762439433340,-201.43477536,0.00017649,2]
[393302576,1762439433350,-1742.27231287,0.00017688,2]
[393302577,1762439433360,-4061.9302,0.000177,2]
[393302578,1762439433369,-367.2862,0.000177,2]
[393302579,1762439433379,-279.7504,0.000177,2]
[393302580,1762439433389,-909.1089,0.000177,2]
[393302581,1762439433402,-5000.0,0.000177,2]
[393302582,1762439433412,-1744.7116197,0.000177,2]
[393302583,1762439433422,-2500.0,0.000177,2]
[393302584,1762439433431,-166.59185113,0.000177,2]
[393302585,1762439433441,-6658.0,0.000177,2]
[393302586,1762439433451,-2141.0,0.000177,2]
[393302587,1762439433460,-574.0,0.000177,2]
[393302588,1762439433470,-174.63694924,0.000177,2]
[393302589,1762439433479,-378.0,0.00017702,2]
[393302590,1762439433489,-378.0,0.00017712,2]
[393302591,1762439433500,-1744.71161963,0.00017722,2]
[393302592,1762439433510,-953.0,0.00017729,2]
[393302593,1762439433519,-1500.0,0.00017729,2]
[393302594,1762439433529,-1744.71161963,0.00017744,2]
[393302595,1762439433538,-221.80400124,0.00017758,2]
[393302596,1762439433548,-1744.71161963,0.00017767,2]
[393302597,1762439433558,-166.59185113,0.00017767,2]
[393302598,1762439433567,-378.0,0.00017786,2]
[393302599,1762439433577,-1744.71161963,0.00017789,2]
[393302600,1762439433587,-6741.94609699,0.00017799,2]
[393302601,1762439433599,-500.0,0.00017799,2]
[393302602,1762439433609,-500.0,0.00017799,2]
[393302603,1762439433619,-500.0,0.00017799,2]
[393302604,1762439433630,-500.0,0.00017799,2]
[393302605,1762439433640,-500.0,0.00017799,2]
[393302606,1762439433650,-500.0,0.00017799,2]
[393302607,1762439433660,-67545.76465066,0.000178,2]
[393302608,1762439433927,-644.01050046,0.000178,2]
[393302615,1762439438056,-1742.27231287,0.00017794,2]
[393302616,1762439438066,-1055.46279726,0.000178,2]
[393302617,1762439438077,-2744.25566807,0.000178,2]
[393302618,1762439438089,-3530.8,0.000178,2]
[393302619,1762439438101,-18959.19710819,0.000178,2]
[393302621,1762439440169,-3077.95956182,0.000177,2]
[393302625,1762439440684,-345.04043818,0.000177,2]
[393302626,1762439440694,-113.39956182,0.000178,2]
[393302627,1762439441061,-1.7e-07,0.000178,2]
[393302628,1762439441074,-325407.10971337,0.000178,2]
[393302629,1762439441083,-1000.0,0.000178,2]
[393302630,1762439441092,-29134.8197,0.000178,2]
[393302631,1762439441102,-378.0,0.00017805,2]
[393302632,1762439441112,-300.0,0.00017805,2]
[393302633,1762439441122,-1744.71161963,0.00017811,2]
[393302634,1762439441131,-1744.71161963,0.00017833,2]
[393302635,1762439441144,-166.59185113,0.00017833,2]
[393302636,1762439441153,-1744.71161963,0.00017856,2]
[393302637,1762439441166,-2000.0,0.00017856,2]
[393302638,1762439441176,-200.0,0.00017856,2]
[393302639,1762439441186,-176.193,0.00017856,2]
[393302640,1762439441196,-1801.101,0.00017856,2]
[393302641,1762439441206,-378.0,0.00017867,2]
[393302642,1762439441216,-1744.71161963,0.00017878,2]
[393302643,1762439441226,-378.0,0.00017887,2]
[393302644,1762439441235,-425.67634842,0.00017891,2]
[393302645,1762439441244,-425.67634841,0.00017893,2]
[393302646,1762439441254,-425.67634841,0.00017894,2]
[393302647,1762439441263,-425.67634841,0.00017896,2]
[393302648,1762439441273,-425.67634841,0.00017897,2]
[393302649,1762439441282,-425.67634841,0.00017899,2]
[393302650,1762439441291,-500.0,0.00017899,2]
[393302651,1762439441301,-500.0,0.00017899,2]
[393302652,1762439441310,-171.38085205,0.000179,2]
[393302653,1762439441320,-2744.9989,0.000179,2]
[393302654,1762439441330,-1229.51174083,0.000179,2]
[393302655,1762439441339,-1744.71161963,0.000179,2]
[393302656,1762439441349,-166.59185113,0.000179,2]
[393302657,1762439441358,-425.67634841,0.000179,2]
[393302658,1762439441368,-325.03961076,0.000179,2]
[393302659,1762439441378,-174.63694923,0.000179,2]
[393302660,1762439441389,-953.0,0.00017903,2]
[393302661,1762439441398,-378.0,0.00017923,2]
[393302662,1762439441408,-219.65200309,0.00017973,2]
[393302663,1762439441417,-500.0,0.00017973,2]
[393302664,1762439441427,-500.0,0.00017973,2]
[393302665,1762439441436,-500.74497787,0.00017973,2]
[393302666,1762439441446,-500.0,0.00017973,2]
[393302667,1762439441455,-353.80511689,0.00017973,2]
[393302668,1762439441464,-500.0,0.00017973,2]
[393302669,1762439441474,-500.0,0.00017973,2]
[393302670,1762439441483,-406.97735465,0.00017973,2]
[393302671,1762439441492,-500.0,0.00017973,2]
[393302672,1762439441502,-500.0,0.00017973,2]
[393302673,1762439441512,-351.16553114,0.00017973,2]
[393302674,1762439441521,-372.38781953,0.00017973,2]
[393302675,1762439441531,-500.0,0.00017973,2]
[393302676,1762439441541,-500.0,0.00017973,2]
[393302677,1762439441554,-500.0,0.00017973,2]
[393302678,1762439441563,-500.0,0.00017973,2]
[393302679,1762439441573,-500.0,0.00017973,2]
[393302680,1762439441583,-500.0,0.00017973,2]
[393302681,1762439441592,-500.0,0.00017973,2]
[393302682,1762439441601,-500.0,0.00017982,2]
[393302683,1762439441611,-150.0,0.00017989,2]
[393302684,1762439441621,-500.0,0.00017989,2]
[393302685,1762439441631,-500.0,0.00017989,2]
[393302686,1762439441642,-500.0,0.00017989,2]
[393302687,1762439441651,-500.0,0.00017989,2]
[393302688,1762439441661,-150.0,0.00017989,2]
[393302689,1762439441670,-500.0,0.00017989,2]
[393302690,1762439441680,-150.0,0.00017989,2]
[393302691,1762439441689,-500.0,0.00017989,2]
[393302692,1762439441699,-500.0,0.00017989,2]
[393302693,1762439441708,-500.0,0.00017989,2]
[393302694,1762439441718,-500.0,0.00017989,2]
[393302695,1762439441728,-500.0,0.00017989,2]
[393302696,1762439441738,-500.0,0.00017989,2]
[393302697,1762439441748,-500.0,0.00017989,2]
[393302698,1762439441758,-202.3599179,0.00017989,2]
[393302699,1762439441768,-150.0,0.00017989,2]
[393302700,1762439441777,-150.0,0.00017989,2]
[393302701,1762439441787,-500.0,0.00017989,2]
[393302702,1762439441797,-150.0,0.00017989,2]
[393302703,1762439441807,-150.0,0.00017989,2]
[393302704,1762439441816,-500.0,0.00017989,2]
[393302705,1762439441825,-150.0,0.00017989,2]
[393302706,1762439441836,-659.0,0.00017989,2]
[393302707,1762439441846,-500.0,0.00017989,2]
[393302708,1762439441856,-150.0,0.00017989,2]
[393302709,1762439441866,-150.0,0.00017989,2]
[393302710,1762439441875,-150.0,0.00017989,2]
[393302711,1762439441886,-150.82616451,0.00017989,2]
[393302712,1762439441896,-150.0,0.00017989,2]
[393302713,1762439441905,-500.0,0.00017989,2]
[393302714,1762439441915,-150.0,0.00017989,2]
[393302715,1762439441926,-500.0,0.00017989,2]
[393302716,1762439441935,-150.0,0.00017989,2]
[393302717,1762439441949,-150.0,0.00017989,2]
[393302718,1762439441958,-150.0,0.00017989,2]
[393302719,1762439441967,-150.0,0.00017989,2]
[393302720,1762439441977,-150.0,0.00017989,2]
[393302721,1762439441987,-500.0,0.00017989,2]
[393302722,1762439441997,-150.0,0.00017989,2]
[393302723,1762439442006,-500.0,0.00017989,2]
[393302724,1762439442015,-150.0,0.00017989,2]
[393302725,1762439442026,-150.0,0.00017989,2]
[393302726,1762439442035,-162.44257324,0.00017989,2]
[393302727,1762439442045,-150.0,0.00017989,2]
[393302728,1762439442055,-150.0,0.00017989,2]
[393302729,1762439442064,-150.0,0.00017989,2]
[393302730,1762439442074,-150.0,0.00017989,2]
[393302731,1762439442084,-150.0,0.00017989,2]
[393302732,1762439442093,-500.0,0.00017989,2]
[393302733,1762439442103,-150.0,0.00017989,2]
[393302734,1762439442112,-500.0,0.00017989,2]
[393302735,1762439442122,-500.0,0.00017989,2]
[393302736,1762439442131,-500.0,0.0001799,2]
[393302737,1762439442143,-500.0,0.0001799,2]
[393302738,1762439442153,-500.0,0.0001799,2]
[393302739,1762439442162,-158879.62404022,0.00017991,2]
[393302752,1762439443302,-416.093,0.000179,2]
[393302753,1762439443314,-1326.17931287,0.000179,2]
[393302754,1762439443323,-105.41212837,0.00017991,2]
[393302755,1762439443390,-2563.9802088,0.00017991,2]
[393302761,1762439446416,-894.15888223,0.000177,2]
[393302762,1762439446657,-420.84111777,0.000177,2]
[393302763,1762439446668,-1711.709914,0.000177,2]
[393302764,1762439446679,-10901.82954022,0.00017991,2]
[393302765,1762439446696,-6943.19871099,0.00017991,2]
[393302766,1762439446708,-46722.42071702,0.00017991,2]
[393302767,1762439446750,-2663.74828034,0.00017991,2]
[393302768,1762439461286,200.0,0.00038635,30]
[393302769,1762439547173,4986319.5378631,0.00030137,120]
[393302771,1762439666527,163.0,0.00038635,30]
[393302774,1762439761808,200.0,0.00038635,30]
[393302777,1762439916179,1609.42179589,0.00038635,30]
[393302779,1762440060911,200.0,0.00038617,30]
[393302780,1762440256842,932.21366511,0.00038617,30]
[393302787,1762440361335,200.0,0.00038617,30]
[393302794,1762440517333,455.62,8.332e-05,2]
[393302795,1762440517540,56.77045289,8.754e-05,2]
[393302796,1762440517565,398.84954711,8.754e-05,2]
[393302797,1762440517781,455.62,9.175e-05,2]
[393302798,1762440518213,455.62,9.597e-05,2]
[393302799,1762440518424,455.62,0.00010018,2]
[393302800,1762440518630,455.62,0.00010439,2]
[393302801,1762440518859,455.62,0.00010861,2]
[393302802,1762440519109,455.62,0.00011282,2]
[393302803,1762440519329,455.62,0.00011703,2]
[393302804,1762440519525,455.62,0.00012125,2]
[393302805,1762440519720,455.62,0.00012546,2]
[393302806,1762440519933,455.62,0.00012967,2]
[393302807,1762440520127,455.62,0.00013389,2]
[393302808,1762440520391,455.62,0.0001381,2]
[393302809,1762440520615,455.62,0.00014231,2]
[393302810,1762440520841,306.42331451,0.00014653,2]
[393302811,1762440520867,149.19668549,0.00014653,2]
[393302838,1762440632279,-455.62,0.00015074,2]
[393302839,1762440632289,-326.95033734,0.00015285,2]
[393302841,1762440632359,-25.44777567,0.00015285,2]
[393302842,1762440632369,-455.62,0.00015495,2]
[393302843,1762440632382,-455.62,0.00015917,2]
[393302844,1762440632392,-250.0,0.00016225,2]
[393302845,1762440632402,-169.81,0.00016248,2]
[393302846,1762440632412,-455.62,0.00016338,2]
[393302847,1762440632421,-2182.39,0.00016438,2]
[393302848,1762440632431,-128.25496188,0.00016528,2]
[393302849,1762440632443,-171.74503812,0.00016528,2]
[393302850,1762440632454,-300.0,0.00016581,2]
[393302851,1762440632464,-486.26615475,0.00016616,2]
[393302852,1762440632476,-713.73384525,0.00016616,2]
[393302853,1762440632485,-68.09654344,0.00016617,2]
[393302854,1762440632497,-347.3413,0.00016617,2]
[393302855,1762440632520,-2865.66215656,0.00016617,2]
[393302856,1762440632531,-335.37,0.00016619,2]
[393302857,1762440632540,-300.0,0.00016662,2]
[393302858,1762440632550,-300.0,0.00016662,2]
[393302859,1762440632559,-300.0,0.00016662,2]
[393302860,1762440632568,-1259.46,0.00016722,2]
[393302861,1762440632585,-500.0,0.00016874,2]
[393302862,1762440632598,-500.0,0.00016874,2]
[393302863,1762440632608,-564.6605092,0.00016874,2]
[393302864,1762440632617,-550.0,0.00016875,2]
[393302865,1762440632627,-256.21770197,0.00016876,2]
[393302866,1762440632637,-151.0,0.00016876,2]
[393302867,1762440632646,-151.0,0.00016876,2]
[393302868,1762440632655,-151.0,0.00016876,2]
[393302869,1762440632667,-151.0,0.00016876,2]
[393302870,1762440632676,-151.0,0.00016876,2]
[393302871,1762440632686,-151.0,0.00016876,2]
[393302872,1762440632696,-151.0,0.00016876,2]
[393302873,1762440632705,-151.0,0.00016876,2]
[393302874,1762440632714,-151.0,0.00016876,2]
[393302875,1762440632724,-151.0,0.00016876,2]
[393302876,1762440632734,-151.0,0.00016876,2]
[393302877,1762440632745,-151.0,0.00016876,2]
[393302878,1762440632756,-151.0,0.00016876,2]
[393302879,1762440632766,-151.0,0.00016876,2]
[393302880,1762440632777,-151.0,0.00016876,2]
[393302881,1762440632786,-151.0,0.00016876,2]
[393302883,1762440632796,-151.0,0.00016876,2]
[393302885,1762440632806,-151.0,0.00016876,2]
[393302886,1762440632815,-151.0,0.00016876,2]
[393302888,1762440632829,-151.0,0.00016876,2]
[393302890,1762440632839,-12737.1,0.00016886,2]
[393302893,1762440632849,-1000.18774754,0.00016957,2]
[393302896,1762440632858,-500.0,0.00016958,2]
[393302900,1762440632868,-316.74901112,0.00017,2]
[393302903,1762440632877,-168.0,0.00017095,2]
[393302905,1762440632886,-169.81,0.00017151,2]
[393302907,1762440632895,-168.0,0.00017159,2]
[393302909,1762440632906,-304.0,0.00017276,2]
[393302911,1762440632915,-304.0,0.00017284,2]
[393302913,1762440632924,-304.0,0.00017433,2]
[393302914,1762440632934,-4061.9302,0.00017522,2]
[393302915,1762440632943,-367.2862,0.00017522,2]
[393302916,1762440632954,-2500.0,0.00017522,2]
[393302917,1762440632964,-317.2591,0.00017522,2]
[393302918,1762440632973,-169.04,0.00017522,2]
[393302919,1762440632982,-169.04,0.00017522,2]
[393302920,1762440632992,-169.04,0.00017522,2]
[393302921,1762440633001,-169.04,0.00017522,2]
[393302922,1762440633012,-872.35580984,0.00017525,2]
[393302923,1762440633021,-201.43477536,0.00017525,2]
[393302924,1762440633031,-166.59185113,0.00017525,2]
[393302925,1762440633040,-1413.91180034,0.00017547,2]
[393302926,1762440633050,-872.35580982,0.00017567,2]
[393302927,1762440633060,-1413.9118003,0.00017586,2]
[393302928,1762440633069,-221.80400124,0.00017596,2]
[393302929,1762440633083,-872.35580982,0.00017608,2]
[393302930,1762440633092,-177.39,0.00017612,2]
[393302931,1762440633102,-177.39,0.00017612,2]
[393302932,1762440633111,-177.39,0.00017612,2]
[393302933,1762440633121,-500.0,0.00017621,2]
[393302934,1762440633130,-244.38155127,0.00017621,2]
[393302935,1762440633139,-477.87911524,0.00017622,2]
[393302936,1762440633148,-1000.0,0.00017622,2]
[393302937,1762440633158,-75453.72550686,0.00017622,2]
[393302938,1762440633171,-28779.63369913,0.00017622,2]
[393302939,1762440633197,-69720.95832023,0.00017622,2]
[393302940,1762440633209,-30840.0,0.00017622,2]
[393302950,1762440638229,-173.85116769,0.00016661,2]
[393302952,1762440638241,-526.85351886,0.00017522,2]
[393302953,1762440638251,-1000.0,0.00017522,2]
[393302955,1762440638263,-5353.38434297,0.00017622,2]
[393302957,1762440638276,-1611.51836,0.00017622,2]
[393302958,1762440638346,-25346.58093545,0.00017622,2]
[393302959,1762440638462,-3811.78490924,0.00017622,2]
[393302960,1762440638474,-2080.0,0.00017622,2]
[393302961,1762440638486,-18317.89671864,0.00017622,2]
[393303019,1762440640443,-1029.55,0.00017622,2]
[393303020,1762440640454,-1031.23677243,0.00017622,2]
[393303021,1762440640482,-156623.73043505,0.00017622,2]
[393303022,1762440640492,-1413.9118003,0.00017625,2]
[393303023,1762440640501,-872.35580982,0.0001765,2]
[393303024,1762440640511,-1413.9118003,0.00017665,2]
[393303025,1762440640521,-872.35580982,0.00017692,2]
[393303026,1762440640530,-1413.9118003,0.00017704,2]
[393303027,1762440640538,-872.35580982,0.00017733,2]
[393303028,1762440640547,-893.73840764,0.00017743,2]
[393303029,1762440640556,-1413.9118003,0.00017743,2]
[393303030,1762440640565,-4578.0,0.00017774,2]
[393303031,1762440640575,-872.35580982,0.00017775,2]
[393303032,1762440640587,-1413.9118003,0.00017782,2]
[393303033,1762440640597,-500.0,0.00017799,2]
[393303034,1762440640608,-500.0,0.00017799,2]
[393303035,1762440640617,-515.94292169,0.00017799,2]
[393303036,1762440640627,-5166.35628,0.0001781,2]
[393303037,1762440640637,-872.35580982,0.00017817,2]
[393303038,1762440640647,-1413.9118003,0.00017822,2]
[393303039,1762440640656,-2000.0,0.00017856,2]
[393303040,1762440640666,-200.0,0.00017856,2]
[393303041,1762440640675,-872.35580982,0.00017858,2]
[393303042,1762440640684,-1413.9118003,0.00017861,2]
[393303043,1762440640694,-176.19377091,0.00017862,2]
[393303044,1762440640704,-1440.88,0.00017862,2]
[393303045,1762440640713,-500.0,0.00017886,2]
[393303046,1762440640722,-5000.0,0.00017887,2]
[393303047,1762440640731,-304.0,0.00017889,2]
[393303049,1762440640741,-2500.0,0.000179,3]
[393303051,1762440640751,-1413.9118003,0.000179,2]
[393303053,1762440640761,-872.35580982,0.000179,2]
[393303054,1762440640771,-166.59185113,0.000179,2]
[393303055,1762440640780,-500.0,0.000179,2]
[393303056,1762440640789,-500.0,0.000179,2]
[393303057,1762440640799,-500.0,0.000179,2]
[393303058,1762440640808,-500.0,0.000179,2]
[393303059,1762440640817,-500.0,0.000179,2]
[393303060,1762440640826,-500.0,0.000179,2]
[393303061,1762440640838,-500.0,0.000179,2]
[393303062,1762440640847,-500.0,0.000179,2]
[393303063,1762440640856,-500.0,0.000179,2]
[393303064,1762440640865,-500.0,0.000179,2]
[393303065,1762440640874,-500.0,0.000179,2]
[393303066,1762440640883,-500.0,0.000179,2]
[393303067,1762440640892,-500.0,0.000179,2]
[393303068,1762440640901,-500.0,0.000179,2]
[393303069,1762440640910,-500.0,0.000179,2]
[393303070,1762440640919,-500.0,0.000179,2]
[393303071,1762440640928,-500.0,0.000179,2]
[393303072,1762440640937,-500.0,0.000179,2]
[393303073,1762440640947,-283.09154533,0.000179,2]
[393303075,1762440640957,-177.39,0.00017963,2]
[393303076,1762440640966,-304.0,0.00017969,2]
[393303077,1762440640975,-355.25282514,0.00017973,2]
[393303078,1762440640985,-277.26642779,0.00017973,2]
[393303079,1762440640994,-500.0,0.00017973,2]
[393303080,1762440641004,-520.11501514,0.00017973,2]
[393303081,1762440641013,-500.0,0.00017973,2]
[393303082,1762440641023,-500.0,0.00017973,2]
[393303083,1762440641033,-500.0,0.00017973,2]
[393303084,1762440641042,-500.0,0.00017973,2]
[393303085,1762440641052,-500.0,0.00017973,2]
[393303086,1762440641061,-500.0,0.00017973,2]
[393303087,1762440641071,-500.0,0.00017973,2]
[393303088,1762440641083,-500.0,0.00017973,2]
[393303089,1762440641092,-500.0,0.00017973,2]
[393303090,1762440641101,-177.39,0.00017977,2]
[393303091,1762440641111,-3067.0,0.00017987,2]
[393303092,1762440641120,-10024.33378272,0.00017987,2]
[393303093,1762440641139,-20500.0,0.00017987,2]
[393303094,1762440641150,-7892.2579962,0.00017987,2]
[393303108,1762440643562,-526.85351885,0.00017524,2]
[393303109,1762440643571,-875.11885748,0.00017685,2]
[393303110,1762440643582,-1717.36038474,0.00017987,2]
[393303111,1762440643597,-308.31124075,0.00017987,2]
[393303112,1762440643622,-6178.3544746,0.00017987,2]
[393303113,1762440643746,-84495.66999125,0.00017987,2]
[393303114,1762440643757,-603.32475265,0.00017987,2]
[393303115,1762440643786,-410.30174383,0.00017987,2]
[393303116,1762440643797,-1293.75433028,0.00017987,2]
[393303117,1762440643811,-928.60134739,0.00017987,2]
[393303129,1762440646519,-1460.77105184,0.00017987,2]
[393303131,1762440646532,-505.01796416,0.00017987,2]
[393303133,1762440646602,-1838.57231479,0.00017987,2]
[393303134,1762440646612,-3800.6775191,0.00017987,2]
[393303135,1762440646621,-1236.0517772,0.00017987,2]
[393303136,1762440646632,-410.08067437,0.00017987,2]
[393303137,1762440646643,-616.0,0.00017987,2]
[393303138,1762440646655,-11626.40680805,0.00017987,2]
[393303139,1762440646667,-400.0,0.00017987,2]
[393303140,1762440646681,-4462.6015611,0.00017987,2]
[393303141,1762440646693,-21049.92671199,0.00017987,2]
[393303142,1762440646764,-38740.0,0.00017987,2]
[393303143,1762440646775,-904.64662748,0.00017987,2]
[393303144,1762440646846,-347.48574704,0.00017987,2]
[393303145,1762440646891,-953.81946683,0.00017987,2]
[393303146,1762440647083,-526.85351885,0.00017525,2]
[393303147,1762440647095,-1373.2537808,0.00017987,2]
[393303154,1762440660861,200.0,0.00038618,30]
[393303155,1762440704728,224.487,0.00038618,30]
[393303156,1762440853947,500.0,0.00038618,120]
[393303157,1762440854503,548.13352003,0.00038618,120]
[393303182,1762441234910,1014.22,0.0003862,30]
[393303184,1762441337100,500.0,0.0003862,120]
[393303185,1762441337981,500.0,0.0003862,120]
[393303186,1762441338142,634.69277624,0.0003862,120]
[393303187,1762441339561,176.21,0.00013257,2]
[393303189,1762441441814,974.34,0.00013699,2]
[393303220,1762441705387,20000.0,0.00038621,30]
[393303221,1762441752005,20000.0,0.00038621,30]
[393303241,1762441831575,-178.0,0.00015702,2]
[393303242,1762441831586,-166.66,0.00015703,2]
[393303243,1762441831595,-166.66,0.00016034,2]
[393303244,1762441831605,-999.0,0.00016224,3]
[393303245,1762441831614,-2751.0,0.0001623,2]
[393303246,1762441831624,-352.27,0.0001623,2]
[393303247,1762441831634,-166.66,0.00016364,2]
[393303248,1762441831643,-1200.0,0.0001657,2]
[393303249,1762441831652,-300.0,0.00016571,2]
[393303250,1762441831662,-300.0,0.00016571,2]
[393303251,1762441831671,-195.0,0.00016571,2]
[393303252,1762441831680,-470.78,0.00016572,2]
[393303253,1762441831689,-500.0,0.00016572,2]
[393303254,1762441831698,-500.0,0.00016572,2]
[393303255,1762441831707,-500.0,0.00016572,2]
[393303256,1762441831719,-500.0,0.00016572,2]
[393303257,1762441831728,-500.0,0.00016572,2]
[393303258,1762441831737,-500.0,0.00016572,2]
[393303259,1762441831746,-500.0,0.00016572,2]
[393303260,1762441831755,-500.0,0.00016572,2]
[393303262,1762441831764,-500.0,0.00016572,2]
[393303264,1762441831774,-500.0,0.00016572,2]
[393303265,1762441831783,-500.0,0.00016572,2]
[393303266,1762441831793,-500.0,0.00016572,2]
[393303267,1762441831802,-500.0,0.00016572,2]
[393303268,1762441831811,-500.0,0.00016572,2]
[393303269,1762441831820,-166.66,0.00016695,2]
[393303270,1762441831829,-483.72,0.00016739,2]
[393303287,1762441832048,-1919.53,0.0001675,2]
[393303289,1762441832059,-491.06,0.00016939,2]
[393303291,1762441832070,-312.74,0.00016987,2]
[393303292,1762441832080,-250.0,0.00017,2]
[393303293,1762441832089,-166.66,0.00017025,2]
[393303294,1762441832099,-477.12,0.00017041,2]
[393303295,1762441832108,-169.04,0.00017078,2]
[393303296,1762441832118,-200.0,0.00017087,2]
[393303297,1762441832127,-1000.0,0.00017127,2]
[393303298,1762441832137,-169.04,0.00017178,2]
[393303299,1762441832146,-300.0,0.00017272,2]
[393303300,1762441832155,-166.66,0.00017356,2]
[393303301,1762441832165,-174.63694924,0.00017422,2]
[393303302,1762441832174,-438.75228021,0.00017422,2]
[393303303,1762441832183,-279.7504,0.00017422,2]
[393303304,1762441832192,-909.1089,0.00017422,2]
[393303305,1762441832202,-884.2059,0.00017422,2]
[393303306,1762441832211,-477.87911524,0.00017468,2]
[393303307,1762441832224,-438.75228012,0.00017475,2]
[393303308,1762441832233,-799.999999,0.000175,2]
[393303309,1762441832243,-151.0,0.00017512,2]
[393303310,1762441832252,-151.0,0.00017512,2]
[393303311,1762441832262,-151.0,0.00017512,2]
[393303312,1762441832271,-151.0,0.00017512,2]
[393303313,1762441832281,-151.0,0.00017512,2]
[393303314,1762441832290,-151.0,0.00017512,2]
[393303315,1762441832299,-151.0,0.00017512,2]
[393303316,1762441832308,-151.0,0.00017512,2]
[393303317,1762441832318,-151.0,0.00017512,2]
[393303318,1762441832327,-151.0,0.00017512,2]
[393303319,1762441832336,-151.0,0.00017512,2]
[393303320,1762441832345,-151.0,0.00017512,2]
[393303321,1762441832354,-151.0,0.00017512,2]
[393303322,1762441832363,-151.0,0.00017512,2]
[393303323,1762441832373,-151.0,0.00017512,2]
[393303324,1762441832383,-151.0,0.00017512,2]
[393303325,1762441832392,-151.0,0.00017512,2]
[393303326,1762441832402,-151.0,0.00017512,2]
[393303327,1762441832411,-151.0,0.00017512,2]
[393303328,1762441832420,-151.0,0.00017512,2]
[393303329,1762441832429,-771.19,0.00017512,2]
[393303330,1762441832439,-163.35,0.00017512,2]
[393303331,1762441832448,-1552.0,0.00017513,2]
[393303332,1762441832457,-169.04,0.00017516,2]
[393303333,1762441832467,-171.06708589,0.00017521,2]
[393303334,1762441832476,-154.65686026,0.00017521,2]
[393303335,1762441832485,-3512.68913826,0.00017522,2]
[393303336,1762441832498,-2065.26841918,0.00017522,2]
[393303337,1762441832509,-142943.62202471,0.00017522,2]
[393303338,1762441832526,-99180.80944606,0.00017522,2]
[393303339,1762441832536,-15141.14222288,0.00017522,2]
[393303340,1762441832556,-334.41967848,0.00017522,2]
[393303342,1762441837464,-360.99050661,0.00017522,2]
[393303344,1762441837588,-260.87986624,0.00017522,2]
[393303345,1762441837600,-423.89753492,0.00017522,2]